[Event "Early-Titled-Tuesday-Blitz-January-23-2024"]
[Site "Chess.com"]
[Date "2024.01.23"]
[Round "5"]
[White "alvarorodriguezavila"]
[Black "Bastiandash"]
[Result "1-0"]
[WhiteElo "2316"]
[BlackElo "2508"]
[TimeControl "180+1"]
[EndTime "8:50:52 PST"]
[Termination "alvarorodriguezavila won by resignation"]

1. e4 {[%clk 0:03:00.9]} 1... c5 {[%clk 0:02:56]} 2. d4 {[%clk 0:03:01.1]} 2...
e6 {[%clk 0:02:56.9]} 3. d5 {[%clk 0:03:00]} 3... exd5 {[%clk 0:02:56]} 4. exd5
{[%clk 0:03:00.6]} 4... d6 {[%clk 0:02:56.5]} 5. c4 {[%clk 0:03:00.9]} 5... Nf6
{[%clk 0:02:57]} 6. h3 {[%clk 0:02:58]} 6... Be7 {[%clk 0:02:57.9]} 7. Nf3
{[%clk 0:02:58.4]} 7... O-O {[%clk 0:02:58.4]} 8. Bd3 {[%clk 0:02:59]} 8... Re8
{[%clk 0:02:57.5]} 9. O-O {[%clk 0:02:59.3]} 9... Bf8 {[%clk 0:02:54]} 10. Nc3
{[%clk 0:02:58.6]} 10... Na6 {[%clk 0:02:52.2]} 11. a3 {[%clk 0:02:58.4]} 11...
Nc7 {[%clk 0:02:43.1]} 12. Qc2 {[%clk 0:02:58.8]} 12... g6 {[%clk 0:02:37.3]}
13. Bg5 {[%clk 0:02:57.3]} 13... h6 {[%clk 0:02:37.7]} 14. Bh4 {[%clk
0:02:55.5]} 14... Bg7 {[%clk 0:02:37.3]} 15. Rfe1 {[%clk 0:02:53.7]} 15... Bd7
{[%clk 0:02:33.6]} 16. Rxe8+ {[%clk 0:02:50.7]} 16... Ncxe8 {[%clk 0:02:34.5]}
17. Re1 {[%clk 0:02:49.7]} 17... a6 {[%clk 0:02:34]} 18. Bxg6 {[%clk 0:02:36.3]}
18... fxg6 {[%clk 0:02:32.6]} 19. Qxg6 {[%clk 0:02:37]} 19... Nc7 {[%clk
0:02:27.4]} 20. Ne4 {[%clk 0:02:33.8]} 20... Nce8 {[%clk 0:02:21.8]} 21. Ng3
{[%clk 0:02:08.8]} 21... Qa5 {[%clk 0:02:08.2]} 22. Re7 {[%clk 0:01:58.3]} 1-0

[Event "Early-Titled-Tuesday-Blitz-January-23-2024"]
[Site "Chess.com"]
[Date "2024.01.23"]
[Round "5"]
[White "Practical-Play"]
[Black "TregubovP"]
[Result "1-0"]
[WhiteElo "2515"]
[BlackElo "2664"]
[TimeControl "180+1"]
[EndTime "8:51:09 PST"]
[Termination "Practical-Play won by resignation"]

1. e4 {[%clk 0:03:00.9]} 1... c5 {[%clk 0:02:55.3]} 2. c3 {[%clk 0:02:59.4]}
2... d5 {[%clk 0:02:50.2]} 3. exd5 {[%clk 0:02:59.6]} 3... Qxd5 {[%clk
0:02:50.7]} 4. d4 {[%clk 0:03:00.3]} 4... g6 {[%clk 0:02:50.7]} 5. Nf3 {[%clk
0:02:59.7]} 5... Bg7 {[%clk 0:02:50.5]} 6. Na3 {[%clk 0:03:00.3]} 6... Nf6
{[%clk 0:02:24.2]} 7. Bc4 {[%clk 0:02:52.8]} 7... Qe4+ {[%clk 0:02:21.9]} 8. Be3
{[%clk 0:02:52.8]} 8... O-O {[%clk 0:02:20.4]} 9. O-O {[%clk 0:02:45.1]} 9...
Ng4 {[%clk 0:02:16]} 10. Bg5 {[%clk 0:02:40.1]} 10... Nc6 {[%clk 0:02:05.7]} 11.
Nh4 {[%clk 0:02:05.4]} 11... Nf6 {[%clk 0:01:49.3]} 12. f3 {[%clk 0:02:03]} 1-0

[Event "Early-Titled-Tuesday-Blitz-January-23-2024"]
[Site "Chess.com"]
[Date "2024.01.23"]
[Round "5"]
[White "LastHeroJr"]
[Black "RandomNoob04"]
[Result "0-1"]
[WhiteElo "2445"]
[BlackElo "2582"]
[TimeControl "180+1"]
[EndTime "8:51:14 PST"]
[Termination "RandomNoob04 won by resignation"]

1. e4 {[%clk 0:03:00.9]} 1... e5 {[%clk 0:03:00]} 2. Nf3 {[%clk 0:02:59.1]} 2...
Nf6 {[%clk 0:03:00.6]} 3. d4 {[%clk 0:02:57.8]} 3... Nxe4 {[%clk 0:03:00.6]} 4.
Bd3 {[%clk 0:02:57.1]} 4... d5 {[%clk 0:03:00.6]} 5. dxe5 {[%clk 0:02:56.6]}
5... Nc5 {[%clk 0:02:59.1]} 6. h3 {[%clk 0:02:53.4]} 6... Be7 {[%clk 0:02:59.2]}
7. O-O {[%clk 0:02:51.6]} 7... O-O {[%clk 0:02:59.5]} 8. Nc3 {[%clk 0:02:50.2]}
8... c6 {[%clk 0:02:57]} 9. Bf4 {[%clk 0:02:48.4]} 9... Re8 {[%clk 0:02:53]} 10.
Re1 {[%clk 0:02:47.3]} 10... Nbd7 {[%clk 0:02:52.6]} 11. Ne2 {[%clk 0:02:46]}
11... Nf8 {[%clk 0:02:50.6]} 12. c3 {[%clk 0:02:45.9]} 12... Nxd3 {[%clk
0:02:41.8]} 13. Qxd3 {[%clk 0:02:45.4]} 13... Ng6 {[%clk 0:02:42.4]} 14. Bg3
{[%clk 0:02:45.1]} 14... c5 {[%clk 0:02:28.6]} 15. Rad1 {[%clk 0:02:44.3]} 15...
Be6 {[%clk 0:02:28.7]} 16. Nf4 {[%clk 0:02:44.4]} 16... Nxf4 {[%clk 0:02:27.4]}
17. Bxf4 {[%clk 0:02:45.3]} 17... h6 {[%clk 0:02:14.4]} 18. Bg3 {[%clk 0:02:45]}
18... Qb6 {[%clk 0:02:13.2]} 19. Qe2 {[%clk 0:02:43.1]} 19... Rad8 {[%clk
0:02:09.9]} 20. Nh2 {[%clk 0:02:42.8]} 20... d4 {[%clk 0:02:09]} 21. c4 {[%clk
0:02:41.8]} 21... d3 {[%clk 0:02:00.4]} 22. Rxd3 {[%clk 0:02:32.7]} 22... Rxd3
{[%clk 0:02:01.3]} 23. Qxd3 {[%clk 0:02:32.6]} 23... Qxb2 {[%clk 0:02:01.6]} 24.
Rb1 {[%clk 0:02:30.6]} 24... Qxa2 {[%clk 0:02:01.2]} 25. Rxb7 {[%clk 0:02:30.7]}
25... Bxc4 {[%clk 0:01:59.3]} 26. Qd7 {[%clk 0:02:28.1]} 26... Qa1+ {[%clk
0:01:57]} 27. Nf1 {[%clk 0:02:28.4]} 27... Qxf1+ {[%clk 0:01:57.9]} 28. Kh2
{[%clk 0:02:28.8]} 28... Kf8 {[%clk 0:01:53.1]} 29. Bh4 {[%clk 0:02:18.6]} 29...
Bxh4 {[%clk 0:01:50.7]} 30. e6 {[%clk 0:02:15.3]} 30... Bxe6 {[%clk 0:01:49]}
0-1

[Event "Early-Titled-Tuesday-Blitz-January-23-2024"]
[Site "Chess.com"]
[Date "2024.01.23"]
[Round "5"]
[White "Squirlolz"]
[Black "monomita"]
[Result "0-1"]
[WhiteElo "2582"]
[BlackElo "2835"]
[TimeControl "180+1"]
[EndTime "8:51:20 PST"]
[Termination "monomita won by resignation"]

1. d4 {[%clk 0:03:00.9]} 1... Nf6 {[%clk 0:02:59.4]} 2. Qd3 {[%clk 0:03:01.4]}
2... d5 {[%clk 0:02:57.7]} 3. Bf4 {[%clk 0:03:00.7]} 3... e6 {[%clk 0:02:57.4]}
4. Nd2 {[%clk 0:03:00.6]} 4... Bd6 {[%clk 0:02:56.6]} 5. e3 {[%clk 0:02:59.6]}
5... Bxf4 {[%clk 0:02:55.9]} 6. exf4 {[%clk 0:02:59.7]} 6... O-O {[%clk
0:02:56.3]} 7. O-O-O {[%clk 0:02:59.7]} 7... c5 {[%clk 0:02:53.4]} 8. dxc5
{[%clk 0:02:58.7]} 8... Qc7 {[%clk 0:02:49]} 9. Nb3 {[%clk 0:02:58.7]} 9...
Qxf4+ {[%clk 0:02:48.2]} 10. Kb1 {[%clk 0:02:59.2]} 10... Nc6 {[%clk 0:02:45.3]}
11. Nf3 {[%clk 0:02:59.4]} 11... Ne4 {[%clk 0:02:44]} 12. g3 {[%clk 0:02:56.1]}
12... Qf6 {[%clk 0:02:40.3]} 13. Qe3 {[%clk 0:02:55.2]} 13... a5 {[%clk
0:02:38.4]} 14. a4 {[%clk 0:02:48.8]} 14... Nb4 {[%clk 0:02:28.1]} 15. Bd3
{[%clk 0:02:46.2]} 15... Bd7 {[%clk 0:02:23.6]} 16. Bxe4 {[%clk 0:02:29.8]}
16... dxe4 {[%clk 0:02:22.3]} 17. Rxd7 {[%clk 0:02:29.8]} 17... exf3 {[%clk
0:02:13.3]} 18. Rxb7 {[%clk 0:02:23.3]} 18... Rfd8 {[%clk 0:02:11]} 19. Nd4
{[%clk 0:02:00.7]} 19... Rxd4 {[%clk 0:02:00.6]} 20. c3 {[%clk 0:01:52.1]} 20...
Qf5+ {[%clk 0:01:59]} 0-1

[Event "Early-Titled-Tuesday-Blitz-January-23-2024"]
[Site "Chess.com"]
[Date "2024.01.23"]
[Round "5"]
[White "otrov-11"]
[Black "HanSchut"]
[Result "1-0"]
[WhiteElo "2507"]
[BlackElo "2261"]
[TimeControl "180+1"]
[EndTime "8:51:41 PST"]
[Termination "otrov-11 won by resignation"]

1. d4 {[%clk 0:02:28.2]} 1... Nf6 {[%clk 0:02:58.5]} 2. c4 {[%clk 0:02:28.7]}
2... g6 {[%clk 0:02:59.1]} 3. g3 {[%clk 0:02:28.2]} 3... Bg7 {[%clk 0:02:59.1]}
4. Bg2 {[%clk 0:02:23]} 4... d5 {[%clk 0:02:59.4]} 5. Nf3 {[%clk 0:02:20.5]}
5... O-O {[%clk 0:02:59.5]} 6. O-O {[%clk 0:02:21.2]} 6... dxc4 {[%clk 0:03:00]}
7. Nbd2 {[%clk 0:02:19.3]} 7... c5 {[%clk 0:02:56.9]} 8. Nxc4 {[%clk 0:02:17.3]}
8... cxd4 {[%clk 0:02:37.9]} 9. Qxd4 {[%clk 0:02:18.2]} 9... a6 {[%clk
0:02:38.6]} 10. Rd1 {[%clk 0:02:12.2]} 10... Qxd4 {[%clk 0:02:33.1]} 11. Nxd4
{[%clk 0:02:13.1]} 11... Rd8 {[%clk 0:02:29]} 12. Bf4 {[%clk 0:02:06.8]} 12...
Nd5 {[%clk 0:02:21.6]} 13. Nb3 {[%clk 0:01:48.4]} 13... e6 {[%clk 0:01:31.6]}
14. e4 {[%clk 0:01:48]} 14... b5 {[%clk 0:01:29]} 15. Nb6 {[%clk 0:01:40.1]} 1-0

[Event "Early-Titled-Tuesday-Blitz-January-23-2024"]
[Site "Chess.com"]
[Date "2024.01.23"]
[Round "5"]
[White "Bigfish1995"]
[Black "ukchessbomber"]
[Result "1-0"]
[WhiteElo "3117"]
[BlackElo "2676"]
[TimeControl "180+1"]
[EndTime "8:52:09 PST"]
[Termination "Bigfish1995 won by resignation"]

1. e4 {[%clk 0:03:00.9]} 1... b6 {[%clk 0:03:00.4]} 2. d4 {[%clk 0:02:59.2]}
2... Bb7 {[%clk 0:03:01.1]} 3. Bd3 {[%clk 0:02:59.5]} 3... e6 {[%clk 0:03:01.4]}
4. Nf3 {[%clk 0:02:59.1]} 4... d6 {[%clk 0:03:02]} 5. O-O {[%clk 0:02:51.2]}
5... Nd7 {[%clk 0:03:02.1]} 6. Re1 {[%clk 0:02:48.6]} 6... Ngf6 {[%clk
0:03:02.3]} 7. e5 {[%clk 0:02:48.3]} 7... dxe5 {[%clk 0:02:56.9]} 8. dxe5 {[%clk
0:02:48.3]} 8... Ng4 {[%clk 0:02:57.2]} 9. Bf4 {[%clk 0:02:36.7]} 9... Bc5
{[%clk 0:02:55.8]} 10. Bg3 {[%clk 0:02:36]} 10... O-O {[%clk 0:02:53.2]} 11. h3
{[%clk 0:02:31.4]} 11... Nh6 {[%clk 0:02:53.2]} 12. Nc3 {[%clk 0:02:21.5]} 12...
Re8 {[%clk 0:02:51.2]} 13. Ne4 {[%clk 0:02:19]} 13... Be7 {[%clk 0:02:50.3]} 14.
Bb5 {[%clk 0:02:17.2]} 14... c6 {[%clk 0:02:47.9]} 15. Bd3 {[%clk 0:02:10.2]}
15... Nf5 {[%clk 0:02:48.5]} 16. Bf4 {[%clk 0:02:10.4]} 16... Nc5 {[%clk
0:02:48]} 17. Nxc5 {[%clk 0:02:10]} 17... Bxc5 {[%clk 0:02:48.9]} 18. c3 {[%clk
0:02:07.7]} 18... Be7 {[%clk 0:02:40.9]} 19. Qc2 {[%clk 0:02:06]} 19... g6
{[%clk 0:02:38.5]} 20. Be4 {[%clk 0:02:00.3]} 20... Qc7 {[%clk 0:02:38.1]} 21.
Nh2 {[%clk 0:01:57.8]} 21... c5 {[%clk 0:02:38.1]} 22. Ng4 {[%clk 0:01:58.4]}
22... Bxe4 {[%clk 0:02:38]} 23. Qxe4 {[%clk 0:01:59.3]} 23... Rad8 {[%clk
0:02:36.5]} 24. Nf6+ {[%clk 0:01:59.2]} 24... Bxf6 {[%clk 0:02:36.4]} 25. exf6
{[%clk 0:02:00.1]} 25... Qd7 {[%clk 0:02:24.6]} 26. g4 {[%clk 0:02:00]} 26...
Nd6 {[%clk 0:02:15.4]} 27. Qe5 {[%clk 0:01:53.9]} 27... Qc6 {[%clk 0:01:55]} 28.
Qg5 {[%clk 0:01:47.3]} 28... Kh8 {[%clk 0:01:54.3]} 29. Rad1 {[%clk 0:01:47.7]}
29... Nc4 {[%clk 0:01:17.4]} 30. Qh6 {[%clk 0:01:46.4]} 1-0

[Event "Early-Titled-Tuesday-Blitz-January-23-2024"]
[Site "Chess.com"]
[Date "2024.01.23"]
[Round "5"]
[White "Logman74"]
[Black "SpongeBob_03"]
[Result "1-0"]
[WhiteElo "2486"]
[BlackElo "2214"]
[TimeControl "180+1"]
[EndTime "8:52:29 PST"]
[Termination "Logman74 won by resignation"]

1. e4 {[%clk 0:03:00.9]} 1... c6 {[%clk 0:00:06.3]} 2. d4 {[%clk 0:02:52.9]}
2... d5 {[%clk 0:00:07.2]} 3. exd5 {[%clk 0:02:52.4]} 3... cxd5 {[%clk
0:00:07.3]} 4. c4 {[%clk 0:02:52]} 4... Nf6 {[%clk 0:00:08.2]} 5. Nc3 {[%clk
0:02:51.6]} 5... Nc6 {[%clk 0:00:08.5]} 6. Bg5 {[%clk 0:02:50.4]} 6... Bg4
{[%clk 0:00:09.2]} 7. Be2 {[%clk 0:02:48.6]} 7... Bxe2 {[%clk 0:00:09]} 8. Ngxe2
{[%clk 0:02:49.1]} 8... e6 {[%clk 0:00:09.9]} 9. c5 {[%clk 0:02:46.1]} 9... Be7
{[%clk 0:00:09.8]} 10. O-O {[%clk 0:02:45.6]} 10... Nd7 {[%clk 0:00:10.2]} 11.
Bxe7 {[%clk 0:02:45.3]} 11... Qxe7 {[%clk 0:00:11.1]} 12. Rb1 {[%clk 0:02:38.3]}
12... O-O {[%clk 0:00:12]} 13. b4 {[%clk 0:02:38.7]} 13... a6 {[%clk 0:00:12.9]}
14. a4 {[%clk 0:02:38.3]} 14... f6 {[%clk 0:00:12.1]} 15. b5 {[%clk 0:02:38.8]}
15... axb5 {[%clk 0:00:12.7]} 16. axb5 {[%clk 0:02:39.7]} 16... Na5 {[%clk
0:00:13.4]} 17. Re1 {[%clk 0:02:36.7]} 17... Nc4 {[%clk 0:00:14.1]} 18. Nf4
{[%clk 0:02:37]} 18... e5 {[%clk 0:00:09.4]} 19. Nfxd5 {[%clk 0:02:33.6]} 19...
Qf7 {[%clk 0:00:08.8]} 20. c6 {[%clk 0:02:26]} 20... bxc6 {[%clk 0:00:08.7]} 21.
bxc6 {[%clk 0:02:25.8]} 21... Nb8 {[%clk 0:00:09.2]} 22. Rb7 {[%clk 0:02:24.4]}
22... Qg6 {[%clk 0:00:08.2]} 23. Ne7+ {[%clk 0:02:23.7]} 1-0

[Event "Early-Titled-Tuesday-Blitz-January-23-2024"]
[Site "Chess.com"]
[Date "2024.01.23"]
[Round "5"]
[White "mary-sanna"]
[Black "NitaLucian"]
[Result "1-0"]
[WhiteElo "2205"]
[BlackElo "2387"]
[TimeControl "180+1"]
[EndTime "8:52:39 PST"]
[Termination "mary-sanna won by resignation"]

1. d4 {[%clk 0:02:55.2]} 1... d6 {[%clk 0:02:59]} 2. c4 {[%clk 0:02:55.4]} 2...
Nf6 {[%clk 0:02:59]} 3. Nc3 {[%clk 0:02:55.3]} 3... Nbd7 {[%clk 0:02:59.4]} 4.
e4 {[%clk 0:02:51.8]} 4... e5 {[%clk 0:02:59.6]} 5. Nge2 {[%clk 0:02:48.8]} 5...
Be7 {[%clk 0:02:59.8]} 6. g3 {[%clk 0:02:48.8]} 6... O-O {[%clk 0:03:00]} 7. Bg2
{[%clk 0:02:49.1]} 7... c6 {[%clk 0:03:00.4]} 8. O-O {[%clk 0:02:49.1]} 8... a6
{[%clk 0:03:00.8]} 9. b4 {[%clk 0:02:45.5]} 9... b5 {[%clk 0:03:00.3]} 10. c5
{[%clk 0:02:31.3]} 10... exd4 {[%clk 0:02:56.2]} 11. Nxd4 {[%clk 0:02:30.6]}
11... dxc5 {[%clk 0:02:47.6]} 12. Nxc6 {[%clk 0:02:30]} 12... Qe8 {[%clk
0:02:47.7]} 13. Nxe7+ {[%clk 0:02:13]} 13... Qxe7 {[%clk 0:02:47.5]} 14. Nd5
{[%clk 0:02:11.5]} 14... Qe5 {[%clk 0:02:31.2]} 15. Bf4 {[%clk 0:02:06.5]} 15...
Qd4 {[%clk 0:02:21]} 16. Qxd4 {[%clk 0:01:55.8]} 16... cxd4 {[%clk 0:02:21.1]}
17. Nxf6+ {[%clk 0:01:56]} 17... Nxf6 {[%clk 0:02:21.1]} 18. e5 {[%clk
0:01:56.2]} 18... Bh3 {[%clk 0:02:10.5]} 19. Bxh3 {[%clk 0:01:52.7]} 19... Nd5
{[%clk 0:02:09.9]} 20. Bg2 {[%clk 0:01:49.9]} 20... Nxf4 {[%clk 0:02:08]} 21.
gxf4 {[%clk 0:01:50.8]} 21... Rad8 {[%clk 0:02:04.8]} 22. Rfd1 {[%clk
0:01:50.8]} 22... Rd7 {[%clk 0:02:04.1]} 23. Rd3 {[%clk 0:01:50.3]} 23... Rfd8
{[%clk 0:02:03.7]} 24. Rad1 {[%clk 0:01:50.4]} 24... Kf8 {[%clk 0:02:03.5]} 25.
Kf1 {[%clk 0:01:50.5]} 25... Ke7 {[%clk 0:02:03.4]} 26. Ke2 {[%clk 0:01:50.5]}
26... f6 {[%clk 0:01:59.7]} 27. Kf3 {[%clk 0:01:42.3]} 27... f5 {[%clk
0:01:58.9]} 28. Bh3 {[%clk 0:01:40.6]} 28... g6 {[%clk 0:01:58.8]} 29. Bf1
{[%clk 0:01:38.1]} 29... Ke6 {[%clk 0:01:58.4]} 30. h4 {[%clk 0:01:38.3]} 30...
h5 {[%clk 0:01:57.3]} 31. Ke2 {[%clk 0:01:36.5]} 31... Rc8 {[%clk 0:01:51.9]}
32. Rg3 {[%clk 0:01:20.8]} 32... Rc4 {[%clk 0:01:41]} 33. Rxg6+ {[%clk
0:01:20.3]} 33... Kf7 {[%clk 0:01:39.4]} 34. e6+ {[%clk 0:01:16.6]} 34... Kxg6
{[%clk 0:01:35.9]} 35. exd7 {[%clk 0:01:16.7]} 1-0

[Event "Early-Titled-Tuesday-Blitz-January-23-2024"]
[Site "Chess.com"]
[Date "2024.01.23"]
[Round "5"]
[White "djano"]
[Black "GMBenjaminBok"]
[Result "1-0"]
[WhiteElo "2676"]
[BlackElo "2894"]
[TimeControl "180+1"]
[EndTime "8:52:41 PST"]
[Termination "djano won by resignation"]

1. e4 {[%clk 0:03:00.9]} 1... c5 {[%clk 0:02:59.2]} 2. Nc3 {[%clk 0:03:00.4]}
2... d6 {[%clk 0:02:59.5]} 3. f4 {[%clk 0:03:00]} 3... g6 {[%clk 0:02:59.9]} 4.
Nf3 {[%clk 0:03:00.1]} 4... Bg7 {[%clk 0:03:00.4]} 5. Bc4 {[%clk 0:03:00.7]}
5... Nc6 {[%clk 0:03:00.4]} 6. O-O {[%clk 0:03:00.7]} 6... e6 {[%clk 0:03:01]}
7. d4 {[%clk 0:03:01]} 7... cxd4 {[%clk 0:03:01]} 8. Nb5 {[%clk 0:03:00.6]} 8...
Nge7 {[%clk 0:03:01.1]} 9. Bb3 {[%clk 0:03:01]} 9... O-O {[%clk 0:03:00.7]} 10.
Nbxd4 {[%clk 0:03:00.8]} 10... Na5 {[%clk 0:03:01.4]} 11. Be3 {[%clk 0:02:50.1]}
11... b6 {[%clk 0:02:57.3]} 12. Qe1 {[%clk 0:02:22]} 12... Nxb3 {[%clk
0:02:51.6]} 13. axb3 {[%clk 0:02:14.4]} 13... Bb7 {[%clk 0:02:51.9]} 14. f5
{[%clk 0:01:56.9]} 14... e5 {[%clk 0:02:41.5]} 15. Bg5 {[%clk 0:01:47.4]} 15...
h6 {[%clk 0:02:18.8]} 16. f6 {[%clk 0:01:47.8]} 16... hxg5 {[%clk 0:02:15.4]}
17. fxg7 {[%clk 0:01:47.7]} 17... Kxg7 {[%clk 0:02:14.5]} 18. Nxg5 {[%clk
0:01:43.6]} 18... exd4 {[%clk 0:02:04.9]} 19. Qh4 {[%clk 0:01:25.7]} 19... Rh8
{[%clk 0:01:46.7]} 20. Rxf7+ {[%clk 0:01:24]} 20... Kg8 {[%clk 0:01:45.9]} 21.
Rh7 {[%clk 0:01:13.4]} 1-0

[Event "Early-Titled-Tuesday-Blitz-January-23-2024"]
[Site "Chess.com"]
[Date "2024.01.23"]
[Round "5"]
[White "ExchangeAB"]
[Black "Rodalquilar"]
[Result "0-1"]
[WhiteElo "2436"]
[BlackElo "2720"]
[TimeControl "180+1"]
[EndTime "8:52:55 PST"]
[Termination "Rodalquilar won by resignation"]

1. d4 {[%clk 0:03:00.9]} 1... d5 {[%clk 0:02:59.3]} 2. Nf3 {[%clk 0:03:00.2]}
2... Nf6 {[%clk 0:02:59.4]} 3. c3 {[%clk 0:03:00.8]} 3... Bf5 {[%clk 0:02:53]}
4. Qb3 {[%clk 0:03:00]} 4... Qc8 {[%clk 0:02:52.9]} 5. Bf4 {[%clk 0:02:59.6]}
5... e6 {[%clk 0:02:51]} 6. e3 {[%clk 0:02:59.3]} 6... c5 {[%clk 0:02:45.1]} 7.
Bb5+ {[%clk 0:02:58.7]} 7... Nc6 {[%clk 0:02:44.9]} 8. Ne5 {[%clk 0:02:58.8]}
8... Nd7 {[%clk 0:02:35]} 9. Qa4 {[%clk 0:02:52]} 9... Ndxe5 {[%clk 0:02:32.6]}
10. Bxe5 {[%clk 0:02:52.9]} 10... f6 {[%clk 0:01:53.6]} 11. Bg3 {[%clk
0:02:52.4]} 11... a6 {[%clk 0:01:51.8]} 12. Bxc6+ {[%clk 0:02:46.1]} 12... Qxc6
{[%clk 0:01:52.1]} 13. Qxc6+ {[%clk 0:02:45.7]} 13... bxc6 {[%clk 0:01:53]} 14.
Nd2 {[%clk 0:02:44.6]} 14... Bd3 {[%clk 0:01:45.1]} 15. Nb3 {[%clk 0:02:41]}
15... c4 {[%clk 0:01:45.4]} 16. Nc5 {[%clk 0:02:35.9]} 16... Bxc5 {[%clk
0:01:45.5]} 17. dxc5 {[%clk 0:02:36.6]} 17... e5 {[%clk 0:01:46.4]} 18. Kd2
{[%clk 0:02:36]} 18... Kd7 {[%clk 0:01:43.2]} 19. b4 {[%clk 0:02:35.1]} 19...
Ke6 {[%clk 0:01:36.3]} 20. a4 {[%clk 0:02:27.3]} 20... Rhb8 {[%clk 0:01:33.4]}
21. a5 {[%clk 0:02:18.7]} 21... h5 {[%clk 0:01:09.5]} 22. f3 {[%clk 0:02:18.2]}
22... g5 {[%clk 0:01:03.8]} 23. h4 {[%clk 0:02:18.3]} 23... Rg8 {[%clk
0:01:00.8]} 24. Rh2 {[%clk 0:02:15.9]} 24... g4 {[%clk 0:00:54.9]} 25. f4 {[%clk
0:02:13.9]} 25... Be4 {[%clk 0:00:55.2]} 26. Rf1 {[%clk 0:02:11.7]} 26... Rad8
{[%clk 0:00:53.8]} 27. Rf2 {[%clk 0:02:05.3]} 27... d4 {[%clk 0:00:42.7]} 28.
exd4 {[%clk 0:01:59.5]} 28... exd4 {[%clk 0:00:42.9]} 29. Rh1 {[%clk 0:01:47.5]}
29... dxc3+ {[%clk 0:00:40.7]} 30. Kxc3 {[%clk 0:01:48.4]} 30... Rd3+ {[%clk
0:00:40.2]} 31. Kb2 {[%clk 0:01:46.8]} 31... Rxg3 {[%clk 0:00:38.9]} 32. Re1
{[%clk 0:01:44.4]} 32... Kf5 {[%clk 0:00:39]} 0-1

[Event "Early-Titled-Tuesday-Blitz-January-23-2024"]
[Site "Chess.com"]
[Date "2024.01.23"]
[Round "5"]
[White "Schachmalanders"]
[Black "norwaytoadog"]
[Result "1-0"]
[WhiteElo "2455"]
[BlackElo "2279"]
[TimeControl "180+1"]
[EndTime "8:53:05 PST"]
[Termination "Schachmalanders won by resignation"]

1. e4 {[%clk 0:03:00.9]} 1... c5 {[%clk 0:02:54.9]} 2. d4 {[%clk 0:02:58.2]}
2... cxd4 {[%clk 0:02:54.6]} 3. c3 {[%clk 0:02:58.6]} 3... e5 {[%clk 0:02:54]}
4. cxd4 {[%clk 0:02:57.3]} 4... Bb4+ {[%clk 0:02:51.4]} 5. Bd2 {[%clk
0:02:56.8]} 5... Bxd2+ {[%clk 0:02:49.5]} 6. Qxd2 {[%clk 0:02:55.9]} 6... exd4
{[%clk 0:02:48.1]} 7. Nf3 {[%clk 0:02:55.3]} 7... Nc6 {[%clk 0:02:47.1]} 8. Nxd4
{[%clk 0:02:54.3]} 8... Nf6 {[%clk 0:02:44.6]} 9. Nxc6 {[%clk 0:02:52.9]} 9...
dxc6 {[%clk 0:02:42.2]} 10. Qxd8+ {[%clk 0:02:52.3]} 10... Kxd8 {[%clk 0:02:43]}
11. Nc3 {[%clk 0:02:51.6]} 11... Re8 {[%clk 0:02:39.9]} 12. O-O-O+ {[%clk
0:02:49.2]} 12... Kc7 {[%clk 0:02:39.4]} 13. f3 {[%clk 0:02:49.7]} 13... Be6
{[%clk 0:02:37.8]} 14. Bd3 {[%clk 0:02:42.6]} 14... b5 {[%clk 0:02:36.6]} 15. a3
{[%clk 0:02:41.1]} 15... Nd7 {[%clk 0:02:31.4]} 16. f4 {[%clk 0:02:36.9]} 16...
f6 {[%clk 0:02:27.9]} 17. Rhe1 {[%clk 0:02:34.9]} 17... Nc5 {[%clk 0:02:23]} 18.
Bc2 {[%clk 0:02:34.6]} 18... a5 {[%clk 0:02:22.2]} 19. e5 {[%clk 0:02:32.2]}
19... f5 {[%clk 0:02:18.6]} 20. g4 {[%clk 0:02:26.2]} 20... g6 {[%clk
0:02:17.7]} 21. gxf5 {[%clk 0:02:25.2]} 21... gxf5 {[%clk 0:02:13.9]} 22. Rg1
{[%clk 0:02:25.3]} 22... b4 {[%clk 0:02:12.5]} 23. Rg7+ {[%clk 0:02:23.4]} 23...
Kb6 {[%clk 0:02:12.5]} 24. Na4+ {[%clk 0:02:24]} 24... Nxa4 {[%clk 0:01:28.7]}
25. Bxa4 {[%clk 0:02:24.9]} 25... Red8 {[%clk 0:01:28.7]} 26. Rxh7 {[%clk
0:02:19.4]} 26... Rxd1+ {[%clk 0:01:20.1]} 27. Bxd1 {[%clk 0:02:18.6]} 27... Rd8
{[%clk 0:01:12.4]} 28. Rh6 {[%clk 0:02:06.3]} 28... Bd5 {[%clk 0:00:53.4]} 29.
Bc2 {[%clk 0:02:02.8]} 29... Be4 {[%clk 0:00:49.2]} 30. Bxe4 {[%clk 0:02:00.7]}
30... fxe4 {[%clk 0:00:49.2]} 31. e6 {[%clk 0:02:01]} 31... e3 {[%clk
0:00:45.8]} 32. e7 {[%clk 0:02:01.2]} 32... Re8 {[%clk 0:00:38]} 33. Re6 {[%clk
0:02:01.4]} 1-0